[Event "Titled Tuesday Blitz February 22 Late 2022"]
[White "Golubev, Mikhail"]
[Black "Iskusnyh, Sergei"]
[WhiteFideId "14100983"]
[BlackFideId "4120027"]
[WhiteElo "2374"]
[BlackElo "2492"]
[Result "0-1"]
[Round "09"]
[TimeControl "180+1"]
[Date "2022.02.22"]
[WhiteClock "0:00:01"]
[BlackClock "0:00:10"]

1. e4 {[%clk 0:03:00]}  e6 {[%clk 0:03:00]} 2. Nc3 {[%clk 0:02:59]}  d5 {[%clk 0:03:00]} 3. d4 {[%clk 0:02:59]}  Nf6 {[%clk 0:02:59]} 4. Bg5 {[%clk 0:02:58]}  dxe4 {[%clk 0:02:59]} 5. Nxe4 {[%clk 0:02:58]}  Nbd7 {[%clk 0:03:00]} 6. Nf3 {[%clk 0:02:53]}  h6 {[%clk 0:03:00]} 7. Nxf6+ {[%clk 0:02:50]}  Nxf6 {[%clk 0:02:59]} 8. Bxf6 {[%clk 0:02:50]}  Qxf6 {[%clk 0:02:59]} 9. Bb5+ {[%clk 0:02:50]}  c6 {[%clk 0:02:59]} 10. Bd3 {[%clk 0:02:50]}  g6 {[%clk 0:02:58]} 11. O-O {[%clk 0:02:45]}  Bg7 {[%clk 0:02:58]} 12. c3 {[%clk 0:02:40]}  O-O {[%clk 0:02:58]} 13. Re1 {[%clk 0:02:39]}  Bd7 {[%clk 0:02:55]} 14. Ne5 {[%clk 0:02:38]}  Rad8 {[%clk 0:02:53]} 15. Qb3 {[%clk 0:02:37]}  Bc8 {[%clk 0:02:53]} 16. Qa3 {[%clk 0:02:33]}  a6 {[%clk 0:02:46]} 17. Rad1 {[%clk 0:02:28]}  Rfe8 {[%clk 0:02:39]} 18. b4 {[%clk 0:02:20]}  Qe7 {[%clk 0:02:13]} 19. Qb3 {[%clk 0:02:19]}  Qc7 {[%clk 0:02:11]} 20. Qc4 {[%clk 0:01:49]}  Rd5 {[%clk 0:01:55]} 21. f4 {[%clk 0:01:25]}  Red8 {[%clk 0:01:01]} 22. Be4 {[%clk 0:01:21]}  R5d6 {[%clk 0:01:01]} 23. a4 {[%clk 0:01:16]}  a5 {[%clk 0:00:50]} 24. b5 {[%clk 0:00:50]}  c5 {[%clk 0:00:49]} 25. d5 {[%clk 0:00:50]}  exd5 {[%clk 0:00:46]} 26. Bxd5 {[%clk 0:00:46]}  Be6 {[%clk 0:00:44]} 27. Bxe6 {[%clk 0:00:42]}  Rxd1 {[%clk 0:00:39]} 28. Bxf7+ {[%clk 0:00:38]}  Kh8 {[%clk 0:00:39]} 29. Nxg6+ {[%clk 0:00:29]}  Kh7 {[%clk 0:00:39]} 30. Rxd1 {[%clk 0:00:21]}  Rxd1+ {[%clk 0:00:38]} 31. Kf2 {[%clk 0:00:22]}  Bf6 {[%clk 0:00:33]} 32. Nf8+ {[%clk 0:00:17]}  Kh8 {[%clk 0:00:31]} 33. Be6 {[%clk 0:00:05]}  Bd4+ {[%clk 0:00:19]} 34. Kf3 {[%clk 0:00:02]}  Bg7 {[%clk 0:00:10]} 35. Ng6+ {[%clk 0:00:01]}  Kh7 {[%clk 0:00:10]} 0-1


[Site "https://www.chess.com"]

[Event "Titled Tuesday Blitz February 22 Late 2022"]
[White "Gomez Ledo, Roberto Carlos"]
[Black "Timofeev, Artyom"]
[WhiteFideId "3507076"]
[BlackFideId "4140419"]
[WhiteElo "2379"]
[BlackElo "2583"]
[Result "0-1"]
[Round "09"]
[TimeControl "180+1"]
[Date "2022.02.22"]
[WhiteClock "0:00:03"]
[BlackClock "0:00:36"]

1. d4 {[%clk 0:03:00]}  d5 {[%clk 0:02:59]} 2. Bf4 {[%clk 0:03:00]}  c5 {[%clk 0:02:56]} 3. c3 {[%clk 0:02:59]}  Nc6 {[%clk 0:02:56]} 4. Nf3 {[%clk 0:02:58]}  Nf6 {[%clk 0:02:51]} 5. Nbd2 {[%clk 0:02:57]}  e6 {[%clk 0:02:51]} 6. e3 {[%clk 0:02:56]}  Bd6 {[%clk 0:02:48]} 7. Bg3 {[%clk 0:02:56]}  O-O {[%clk 0:02:46]} 8. Bd3 {[%clk 0:02:56]}  b6 {[%clk 0:02:46]} 9. e4 {[%clk 0:02:55]}  Be7 {[%clk 0:02:38]} 10. e5 {[%clk 0:02:52]}  Nd7 {[%clk 0:02:37]} 11. a3 {[%clk 0:02:47]}  a5 {[%clk 0:02:36]} 12. Qe2 {[%clk 0:02:46]}  Ndb8 {[%clk 0:02:28]} 13. h4 {[%clk 0:02:42]}  h6 {[%clk 0:02:28]} 14. Bf4 {[%clk 0:02:35]}  Ba6 {[%clk 0:02:27]} 15. Bxa6 {[%clk 0:02:34]}  Nxa6 {[%clk 0:02:26]} 16. Qe3 {[%clk 0:02:34]}  f6 {[%clk 0:02:08]} 17. Rh3 {[%clk 0:02:15]}  cxd4 {[%clk 0:01:46]} 18. cxd4 {[%clk 0:02:12]}  fxe5 {[%clk 0:01:46]} 19. Nxe5 {[%clk 0:02:09]}  Nxe5 {[%clk 0:01:46]} 20. Bxe5 {[%clk 0:02:09]}  Bf6 {[%clk 0:01:45]} 21. Nf3 {[%clk 0:01:56]}  Nc7 {[%clk 0:01:40]} 22. Rg3 {[%clk 0:01:51]}  Kh7 {[%clk 0:01:28]} 23. Qd3+ {[%clk 0:01:44]}  Kh8 {[%clk 0:01:26]} 24. Qg6 {[%clk 0:01:36]}  Ne8 {[%clk 0:01:25]} 25. Kf1 {[%clk 0:00:54]}  Ra7 {[%clk 0:01:19]} 26. Re1 {[%clk 0:00:53]}  Raf7 {[%clk 0:01:15]} 27. Kg1 {[%clk 0:00:52]}  Nd6 {[%clk 0:01:04]} 28. Ng5 {[%clk 0:00:40]}  hxg5 {[%clk 0:00:48]} 29. hxg5 {[%clk 0:00:40]}  Kg8 {[%clk 0:00:47]} 30. Rh3 {[%clk 0:00:21]}  Rd7 {[%clk 0:00:39]} 31. gxf6 {[%clk 0:00:17]}  Rxf6 {[%clk 0:00:36]} 32. Bxf6 {[%clk 0:00:11]}  Qxf6 {[%clk 0:00:36]} 33. Qh7+ {[%clk 0:00:11]}  Kf7 {[%clk 0:00:36]} 34. Rf3 {[%clk 0:00:04]}  Nf5 {[%clk 0:00:36]} 35. g4 {[%clk 0:00:03]}  Qg5 {[%clk 0:00:36]} 0-1


[Site "https://www.chess.com"]

[Event "Titled Tuesday Blitz February 22 Late 2022"]
[White "Gupta, Abhijeet"]
[Black "Naroditsky, Daniel"]
[WhiteFideId "5010608"]
[BlackFideId "2026961"]
[WhiteElo "2549"]
[BlackElo "2608"]
[Result "0-1"]
[Round "09"]
[TimeControl "180+1"]
[Date "2022.02.22"]
[WhiteClock "0:00:13"]
[BlackClock "0:00:08"]

1. d4 {[%clk 0:03:00]}  Nf6 {[%clk 0:02:46]} 2. Nf3 {[%clk 0:03:00]}  g6 {[%clk 0:02:46]} 3. c4 {[%clk 0:02:58]}  Bg7 {[%clk 0:02:47]} 4. Nc3 {[%clk 0:02:59]}  O-O {[%clk 0:02:48]} 5. e4 {[%clk 0:03:00]}  d6 {[%clk 0:02:49]} 6. h3 {[%clk 0:03:00]}  e5 {[%clk 0:02:48]} 7. d5 {[%clk 0:03:00]}  Nh5 {[%clk 0:02:48]} 8. g3 {[%clk 0:03:00]}  Qe8 {[%clk 0:02:48]} 9. Be2 {[%clk 0:02:59]}  f5 {[%clk 0:02:47]} 10. exf5 {[%clk 0:02:58]}  gxf5 {[%clk 0:02:48]} 11. Nh4 {[%clk 0:02:56]}  Nf6 {[%clk 0:02:47]} 12. Qc2 {[%clk 0:02:53]}  e4 {[%clk 0:02:33]} 13. Bg5 {[%clk 0:02:48]}  Na6 {[%clk 0:02:32]} 14. a3 {[%clk 0:02:48]}  Nc5 {[%clk 0:02:32]} 15. O-O-O {[%clk 0:02:45]}  a5 {[%clk 0:02:32]} 16. Ng2 {[%clk 0:02:41]}  a4 {[%clk 0:02:27]} 17. Kb1 {[%clk 0:02:41]}  Ra6 {[%clk 0:02:18]} 18. Be3 {[%clk 0:02:36]}  Nfd7 {[%clk 0:02:12]} 19. Nb5 {[%clk 0:01:57]}  Qd8 {[%clk 0:02:02]} 20. Nf4 {[%clk 0:01:52]}  Ne5 {[%clk 0:02:02]} 21. g4 {[%clk 0:01:48]}  Rb6 {[%clk 0:01:56]} 22. gxf5 {[%clk 0:01:45]}  Bxf5 {[%clk 0:01:56]} 23. Rhg1 {[%clk 0:01:45]}  Ng6 {[%clk 0:01:51]} 24. Ne6 {[%clk 0:01:05]}  Bxe6 {[%clk 0:01:09]} 25. dxe6 {[%clk 0:01:06]}  Qe7 {[%clk 0:01:04]} 26. Bxc5 {[%clk 0:00:55]}  dxc5 {[%clk 0:01:04]} 27. Rd7 {[%clk 0:00:55]}  Qxe6 {[%clk 0:01:00]} 28. Bg4 {[%clk 0:00:56]}  Qf6 {[%clk 0:00:57]} 29. Rxc7 {[%clk 0:00:23]}  Qxf2 {[%clk 0:00:54]} 30. Rg2 {[%clk 0:00:22]}  Qe1+ {[%clk 0:00:44]} 31. Ka2 {[%clk 0:00:22]}  Rf1 {[%clk 0:00:40]} 32. Rc8+ {[%clk 0:00:23]}  Nf8 {[%clk 0:00:34]} 33. Bd1 {[%clk 0:00:21]}  Qxd1 {[%clk 0:00:29]} 34. Qxd1 {[%clk 0:00:18]}  Rxd1 {[%clk 0:00:30]} 35. Nc3 {[%clk 0:00:18]}  Rd4 {[%clk 0:00:11]} 36. Nd5 {[%clk 0:00:17]}  Re6 {[%clk 0:00:12]} 37. Rc7 {[%clk 0:00:17]}  Ng6 {[%clk 0:00:11]} 38. Rc8+ {[%clk 0:00:17]}  Bf8 {[%clk 0:00:12]} 39. Nf4 {[%clk 0:00:16]}  Rf6 {[%clk 0:00:12]} 40. Nh5 {[%clk 0:00:16]}  Rf7 {[%clk 0:00:12]} 41. h4 {[%clk 0:00:14]}  e3 {[%clk 0:00:12]} 42. Ng3 {[%clk 0:00:14]}  Rd2 {[%clk 0:00:12]} 43. Rg1 {[%clk 0:00:14]}  Nxh4 {[%clk 0:00:11]} 44. Nf5+ {[%clk 0:00:14]}  Rg2 {[%clk 0:00:10]} 45. Nh6+ {[%clk 0:00:13]}  Kg7 {[%clk 0:00:10]} 46. Rxg2+ {[%clk 0:00:14]}  Nxg2 {[%clk 0:00:11]} 47. Nxf7 {[%clk 0:00:14]}  Kxf7 {[%clk 0:00:08]} 48. Rc7+ {[%clk 0:00:13]}  Be7 {[%clk 0:00:08]} 0-1


[Site "https://www.chess.com"]

[Event "Titled Tuesday Blitz February 22 Late 2022"]
[White "Hambleton, Aman"]
[Black "Sjugirov, Sanan"]
[WhiteFideId "2606577"]
[BlackFideId "4189302"]
[WhiteElo "2552"]
[BlackElo "2602"]
[Result "0-1"]
[Round "09"]
[TimeControl "180+1"]
[Date "2022.02.22"]
[WhiteClock "0:00:02"]
[BlackClock "0:02:09"]

1. d4 {[%clk 0:03:00]}  Nf6 {[%clk 0:02:58]} 2. c4 {[%clk 0:02:58]}  e6 {[%clk 0:02:58]} 3. Nc3 {[%clk 0:02:58]}  Bb4 {[%clk 0:02:58]} 4. Qc2 {[%clk 0:02:52]}  d5 {[%clk 0:02:55]} 5. a3 {[%clk 0:02:51]}  Bxc3+ {[%clk 0:02:54]} 6. Qxc3 {[%clk 0:02:52]}  O-O {[%clk 0:02:54]} 7. Nf3 {[%clk 0:02:41]}  b6 {[%clk 0:02:47]} 8. Bg5 {[%clk 0:02:33]}  dxc4 {[%clk 0:02:47]} 9. Qxc4 {[%clk 0:02:34]}  Ba6 {[%clk 0:02:46]} 10. Qa4 {[%clk 0:02:34]}  h6 {[%clk 0:02:43]} 11. Bh4 {[%clk 0:02:28]}  c5 {[%clk 0:02:40]} 12. dxc5 {[%clk 0:01:50]}  bxc5 {[%clk 0:02:41]} 13. Rc1 {[%clk 0:01:49]}  Qb6 {[%clk 0:02:40]} 14. Bxf6 {[%clk 0:01:25]}  gxf6 {[%clk 0:02:41]} 15. Qg4+ {[%clk 0:01:22]}  Kh7 {[%clk 0:02:39]} 16. Qe4+ {[%clk 0:00:14]}  f5 {[%clk 0:02:38]} 17. Qc2 {[%clk 0:00:11]}  Nd7 {[%clk 0:02:35]} 18. g4 {[%clk 0:00:06]}  Rab8 {[%clk 0:02:21]} 19. gxf5 {[%clk 0:00:04]}  Qxb2 {[%clk 0:02:21]} 20. fxe6+ {[%clk 0:00:05]}  Qxc2 {[%clk 0:02:20]} 21. Rxc2 {[%clk 0:00:06]}  fxe6 {[%clk 0:02:20]} 22. Rc1 {[%clk 0:00:02]}  Rb2 {[%clk 0:02:16]} 23. Nd2 {[%clk 0:00:01]}  Nf6 {[%clk 0:02:09]} 24. Bg2 {[%clk 0:00:02]}  Rd8 {[%clk 0:02:09]} 0-1


[Site "https://www.chess.com"]

[Event "Titled Tuesday Blitz February 22 Late 2022"]
[White "Holt, Conrad"]
[Black "Csonka, Balazs"]
[WhiteFideId "2034387"]
[BlackFideId "742910"]
[WhiteElo "2586"]
[BlackElo "2404"]
[Result "1-0"]
[Round "09"]
[TimeControl "180+1"]
[Date "2022.02.22"]
[WhiteClock "0:02:05"]
[BlackClock "0:00:41"]

1. d4 {[%clk 0:03:00]}  Nf6 {[%clk 0:02:58]} 2. c4 {[%clk 0:03:01]}  e6 {[%clk 0:02:58]} 3. Nc3 {[%clk 0:03:02]}  Bb4 {[%clk 0:02:57]} 4. Qc2 {[%clk 0:03:02]}  O-O {[%clk 0:02:52]} 5. e4 {[%clk 0:03:03]}  d5 {[%clk 0:02:45]} 6. e5 {[%clk 0:03:03]}  Ne4 {[%clk 0:02:45]} 7. Bd3 {[%clk 0:03:03]}  c5 {[%clk 0:02:43]} 8. Nf3 {[%clk 0:03:04]}  cxd4 {[%clk 0:02:38]} 9. Nxd4 {[%clk 0:03:05]}  Nd7 {[%clk 0:02:38]} 10. Bf4 {[%clk 0:03:05]}  Qh4 {[%clk 0:02:34]} 11. g3 {[%clk 0:03:05]}  Qh5 {[%clk 0:02:22]} 12. O-O {[%clk 0:03:00]}  g5 {[%clk 0:02:16]} 13. cxd5 {[%clk 0:02:57]}  gxf4 {[%clk 0:02:08]} 14. Nxe4 {[%clk 0:02:46]}  exd5 {[%clk 0:01:53]} 15. Nf6+ {[%clk 0:02:19]}  Nxf6 {[%clk 0:01:53]} 16. exf6 {[%clk 0:02:20]}  Bh3 {[%clk 0:01:41]} 17. Rfd1 {[%clk 0:02:20]}  Rac8 {[%clk 0:01:33]} 18. Qe2 {[%clk 0:02:18]}  Bg4 {[%clk 0:00:53]} 19. f3 {[%clk 0:02:18]}  Bd7 {[%clk 0:00:52]} 20. gxf4 {[%clk 0:02:06]}  Bd6 {[%clk 0:00:41]} 21. Qg2+ {[%clk 0:02:05]} 1-0


[Site "https://www.chess.com"]

[Event "Titled Tuesday Blitz February 22 Late 2022"]
[White "Horak, Martin"]
[Black "Wu, Christopher"]
[WhiteFideId "367095"]
[BlackFideId "2040875"]
[WhiteElo "1997"]
[BlackElo "2627"]
[Result "0-1"]
[Round "09"]
[TimeControl "180+1"]
[Date "2022.02.23"]
[WhiteClock "0:00:06"]
[BlackClock "0:01:15"]

1. d4 {[%clk 0:03:00]}  Nf6 {[%clk 0:02:57]} 2. c4 {[%clk 0:03:00]}  e6 {[%clk 0:02:55]} 3. g3 {[%clk 0:03:00]}  d5 {[%clk 0:02:54]} 4. Bg2 {[%clk 0:03:00]}  c6 {[%clk 0:02:53]} 5. Nf3 {[%clk 0:02:59]}  dxc4 {[%clk 0:02:52]} 6. Ne5 {[%clk 0:02:59]}  a6 {[%clk 0:02:47]} 7. O-O {[%clk 0:02:56]}  b5 {[%clk 0:02:41]} 8. Nxc6 {[%clk 0:02:54]}  Qb6 {[%clk 0:02:41]} 9. Nxb8 {[%clk 0:02:37]}  Rxb8 {[%clk 0:02:41]} 10. b3 {[%clk 0:02:30]}  cxb3 {[%clk 0:02:38]} 11. Qxb3 {[%clk 0:02:27]}  Bb7 {[%clk 0:02:28]} 12. Bxb7 {[%clk 0:02:21]}  Qxb7 {[%clk 0:02:25]} 13. a4 {[%clk 0:02:15]}  Be7 {[%clk 0:02:21]} 14. Bf4 {[%clk 0:02:11]}  Rd8 {[%clk 0:02:20]} 15. axb5 {[%clk 0:01:51]}  axb5 {[%clk 0:02:19]} 16. Nc3 {[%clk 0:01:46]}  b4 {[%clk 0:02:15]} 17. Rfd1 {[%clk 0:00:58]}  O-O {[%clk 0:02:13]} 18. Na4 {[%clk 0:00:32]}  Nd5 {[%clk 0:02:12]} 19. Nc5 {[%clk 0:00:22]}  Qb5 {[%clk 0:01:41]} 20. Rac1 {[%clk 0:00:21]}  Nxf4 {[%clk 0:01:30]} 21. gxf4 {[%clk 0:00:20]}  Qxe2 {[%clk 0:01:31]} 22. Qe3 {[%clk 0:00:14]}  Qg4+ {[%clk 0:01:25]} 23. Qg3 {[%clk 0:00:14]}  Qf5 {[%clk 0:01:21]} 24. Kh1 {[%clk 0:00:12]}  Bxc5 {[%clk 0:01:18]} 25. dxc5 {[%clk 0:00:11]}  Rxd1+ {[%clk 0:01:17]} 26. Rxd1 {[%clk 0:00:11]}  Qxc5 {[%clk 0:01:18]} 27. Rg1 {[%clk 0:00:09]}  Qd5+ {[%clk 0:01:17]} 28. f3 {[%clk 0:00:09]}  g6 {[%clk 0:01:17]} 29. h4 {[%clk 0:00:07]}  b3 {[%clk 0:01:17]} 30. Qf2 {[%clk 0:00:06]}  Rb8 {[%clk 0:01:15]} 0-1


[Site "https://www.chess.com"]

[Event "Titled Tuesday Blitz February 22 Late 2022"]
[White "Jones, Gawain C B"]
[Black "Deac, Bogdan-Daniel"]
[WhiteFideId "409561"]
[BlackFideId "1226380"]
[WhiteElo "2657"]
[BlackElo "2646"]
[Result "1/2-1/2"]
[Round "09"]
[TimeControl "180+1"]
[Date "2022.02.22"]
[WhiteClock "0:00:07"]
[BlackClock "0:00:11"]

1. Nf3 {[%clk 0:03:00]}  d5 {[%clk 0:02:59]} 2. g3 {[%clk 0:03:00]}  Nf6 {[%clk 0:02:58]} 3. Bg2 {[%clk 0:03:00]}  e6 {[%clk 0:02:59]} 4. O-O {[%clk 0:02:58]}  Be7 {[%clk 0:03:00]} 5. d3 {[%clk 0:02:59]}  O-O {[%clk 0:02:59]} 6. Nbd2 {[%clk 0:02:59]}  Nc6 {[%clk 0:03:00]} 7. e4 {[%clk 0:02:53]}  dxe4 {[%clk 0:02:59]} 8. Nxe4 {[%clk 0:02:52]}  Nxe4 {[%clk 0:02:52]} 9. dxe4 {[%clk 0:02:53]}  Qxd1 {[%clk 0:02:52]} 10. Rxd1 {[%clk 0:02:53]}  e5 {[%clk 0:02:53]} 11. Be3 {[%clk 0:02:49]}  f6 {[%clk 0:02:40]} 12. Bf1 {[%clk 0:02:46]}  Be6 {[%clk 0:02:40]} 13. Bb5 {[%clk 0:02:44]}  a6 {[%clk 0:02:40]} 14. Bxc6 {[%clk 0:02:39]}  bxc6 {[%clk 0:02:41]} 15. Nd2 {[%clk 0:02:29]}  a5 {[%clk 0:02:28]} 16. Nb3 {[%clk 0:02:22]}  Rfb8 {[%clk 0:02:19]} 17. a4 {[%clk 0:02:05]}  Bxb3 {[%clk 0:02:11]} 18. cxb3 {[%clk 0:02:05]}  Rxb3 {[%clk 0:02:12]} 19. Rac1 {[%clk 0:01:51]}  Rxb2 {[%clk 0:01:53]} 20. Rd7 {[%clk 0:01:41]}  Bf8 {[%clk 0:00:25]} 21. Rxc6 {[%clk 0:01:29]}  Rb4 {[%clk 0:00:19]} 22. Bc5 {[%clk 0:00:44]}  Rc4 {[%clk 0:00:17]} 23. Rdxc7 {[%clk 0:00:44]}  Rxe4 {[%clk 0:00:11]} 24. Bxf8 {[%clk 0:00:41]}  Rxf8 {[%clk 0:00:12]} 25. Ra6 {[%clk 0:00:40]}  Rxa4 {[%clk 0:00:12]} 26. h3 {[%clk 0:00:35]}  Kh8 {[%clk 0:00:11]} 27. Kg2 {[%clk 0:00:29]}  h5 {[%clk 0:00:11]} 28. Raa7 {[%clk 0:00:26]}  Rg8 {[%clk 0:00:11]} 29. Ra6 {[%clk 0:00:22]}  Ra3 {[%clk 0:00:10]} 30. Rc5 {[%clk 0:00:13]}  Kh7 {[%clk 0:00:09]} 31. Rcxa5 {[%clk 0:00:10]}  Rd3 {[%clk 0:00:09]} 32. Ra3 {[%clk 0:00:10]}  Rd2 {[%clk 0:00:08]} 33. g4 {[%clk 0:00:09]}  hxg4 {[%clk 0:00:08]} 34. hxg4 {[%clk 0:00:09]}  Kg6 {[%clk 0:00:07]} 35. Ra2 {[%clk 0:00:09]}  Rd4 {[%clk 0:00:06]} 36. Kg3 {[%clk 0:00:09]}  Rgd8 {[%clk 0:00:06]} 37. R2a3 {[%clk 0:00:09]}  Rf4 {[%clk 0:00:05]} 38. Ra7 {[%clk 0:00:09]}  Rg8 {[%clk 0:00:04]} 39. f3 {[%clk 0:00:09]}  Kg5 {[%clk 0:00:04]} 40. R3a4 {[%clk 0:00:07]}  g6 {[%clk 0:00:03]} 41. Rxf4 {[%clk 0:00:06]}  exf4+ {[%clk 0:00:04]} 42. Kg2 {[%clk 0:00:06]}  Rd8 {[%clk 0:00:04]} 43. Ra5+ {[%clk 0:00:06]}  Kh4 {[%clk 0:00:04]} 44. Ra2 {[%clk 0:00:07]}  Rd3 {[%clk 0:00:04]} 45. Re2 {[%clk 0:00:07]}  Rd5 {[%clk 0:00:05]} 46. Ra2 {[%clk 0:00:07]}  Rc5 {[%clk 0:00:05]} 47. Re2 {[%clk 0:00:07]}  f5 {[%clk 0:00:05]} 48. gxf5 {[%clk 0:00:07]}  Rxf5 {[%clk 0:00:06]} 49. Re4 {[%clk 0:00:07]}  g5 {[%clk 0:00:05]} 50. Re8 {[%clk 0:00:06]}  Kh5 {[%clk 0:00:05]} 51. Rh8+ {[%clk 0:00:06]}  Kg6 {[%clk 0:00:05]} 52. Rg8+ {[%clk 0:00:07]}  Kf7 {[%clk 0:00:05]} 53. Ra8 {[%clk 0:00:07]}  Rc5 {[%clk 0:00:05]} 54. Ra2 {[%clk 0:00:06]}  Kg6 {[%clk 0:00:05]} 55. Kh3 {[%clk 0:00:06]}  Kh5 {[%clk 0:00:05]} 56. Kg2 {[%clk 0:00:04]}  Rc3 {[%clk 0:00:05]} 57. Rb2 {[%clk 0:00:04]}  Kh4 {[%clk 0:00:05]} 58. Ra2 {[%clk 0:00:05]}  Kh5 {[%clk 0:00:05]} 59. Rb2 {[%clk 0:00:05]}  Kh4 {[%clk 0:00:06]} 60. Ra2 {[%clk 0:00:06]}  Re3 {[%clk 0:00:06]} 61. Rb2 {[%clk 0:00:06]}  g4 {[%clk 0:00:06]} 62. fxg4 {[%clk 0:00:06]}  Kxg4 {[%clk 0:00:07]} 63. Rb8 {[%clk 0:00:04]}  Re2+ {[%clk 0:00:07]} 64. Kf1 {[%clk 0:00:05]}  Kf3 {[%clk 0:00:08]} 65. Rb3+ {[%clk 0:00:05]}  Re3 {[%clk 0:00:08]} 66. Rb2 {[%clk 0:00:04]}  Ra3 {[%clk 0:00:08]} 67. Rf2+ {[%clk 0:00:05]}  Kg3 {[%clk 0:00:08]} 68. Rg2+ {[%clk 0:00:05]}  Kf3 {[%clk 0:00:09]} 69. Rf2+ {[%clk 0:00:06]}  Kg4 {[%clk 0:00:09]} 70. Rg2+ {[%clk 0:00:06]}  Rg3 {[%clk 0:00:09]} 71. Kf2 {[%clk 0:00:05]}  Rxg2+ {[%clk 0:00:08]} 72. Kxg2 {[%clk 0:00:05]}  f3+ {[%clk 0:00:09]} 73. Kf2 {[%clk 0:00:06]}  Kf4 {[%clk 0:00:10]} 74. Kf1 {[%clk 0:00:07]}  Kg3 {[%clk 0:00:10]} 75. Kg1 {[%clk 0:00:07]}  f2+ {[%clk 0:00:11]} 76. Kf1 {[%clk 0:00:07]}  Kf3 {[%clk 0:00:11]} 1/2-1/2


[Site "https://www.chess.com"]

[Event "Titled Tuesday Blitz February 22 Late 2022"]
[White "Kobo, Ori"]
[Black "Loay, Sameer"]
[WhiteFideId "2812320"]
[BlackFideId "8104239"]
[WhiteElo "2420"]
[BlackElo "2040"]
[Result "1-0"]
[Round "09"]
[TimeControl "180+1"]
[Date "2022.02.22"]
[WhiteClock "0:00:18"]
[BlackClock "0:00:07"]

1. Nc3 {[%clk 0:03:00]}  Nf6 {[%clk 0:02:58]} 2. e4 {[%clk 0:03:00]}  d6 {[%clk 0:02:58]} 3. d4 {[%clk 0:03:00]}  g6 {[%clk 0:02:58]} 4. Nf3 {[%clk 0:03:00]}  Bg7 {[%clk 0:02:59]} 5. Be3 {[%clk 0:03:00]}  O-O {[%clk 0:02:59]} 6. Qd2 {[%clk 0:03:00]}  Ng4 {[%clk 0:02:59]} 7. Bg5 {[%clk 0:02:59]}  h6 {[%clk 0:02:55]} 8. Bh4 {[%clk 0:02:56]}  g5 {[%clk 0:02:53]} 9. Bg3 {[%clk 0:02:56]}  c5 {[%clk 0:02:53]} 10. h3 {[%clk 0:02:43]}  cxd4 {[%clk 0:02:51]} 11. Nxd4 {[%clk 0:02:42]}  Ne5 {[%clk 0:02:50]} 12. h4 {[%clk 0:02:37]}  g4 {[%clk 0:02:48]} 13. Be2 {[%clk 0:02:30]}  Nbc6 {[%clk 0:02:43]} 14. Nf5 {[%clk 0:02:21]}  Bxf5 {[%clk 0:02:34]} 15. exf5 {[%clk 0:02:22]}  Qb6 {[%clk 0:02:23]} 16. Rb1 {[%clk 0:02:02]}  Rfc8 {[%clk 0:02:16]} 17. Nd5 {[%clk 0:01:57]}  Qd8 {[%clk 0:01:59]} 18. c3 {[%clk 0:01:54]}  Qd7 {[%clk 0:01:36]} 19. Qf4 {[%clk 0:01:25]}  e6 {[%clk 0:01:12]} 20. Ne3 {[%clk 0:01:13]}  exf5 {[%clk 0:01:05]} 21. Nxf5 {[%clk 0:01:09]}  Qe6 {[%clk 0:01:04]} 22. O-O {[%clk 0:01:05]}  h5 {[%clk 0:00:46]} 23. Rfe1 {[%clk 0:00:57]}  Qg6 {[%clk 0:00:38]} 24. Bb5 {[%clk 0:00:51]}  Bf8 {[%clk 0:00:35]} 25. Rbd1 {[%clk 0:00:48]}  a6 {[%clk 0:00:31]} 26. Ba4 {[%clk 0:00:44]}  b5 {[%clk 0:00:30]} 27. Bc2 {[%clk 0:00:44]}  Qf6 {[%clk 0:00:20]} 28. Qe4 {[%clk 0:00:44]}  Ng6 {[%clk 0:00:10]} 29. Nxd6 {[%clk 0:00:36]}  Rc7 {[%clk 0:00:06]} 30. Ne8 {[%clk 0:00:32]}  Rxe8 {[%clk 0:00:07]} 31. Qxe8 {[%clk 0:00:33]}  Nce5 {[%clk 0:00:06]} 32. Bxe5 {[%clk 0:00:30]}  Nxe5 {[%clk 0:00:06]} 33. Qxe5 {[%clk 0:00:29]}  Qxe5 {[%clk 0:00:05]} 34. Rxe5 {[%clk 0:00:30]}  Be7 {[%clk 0:00:06]} 35. Rxh5 {[%clk 0:00:29]}  Bf6 {[%clk 0:00:07]} 36. Rd6 {[%clk 0:00:28]}  Kg7 {[%clk 0:00:07]} 37. Rh7+ {[%clk 0:00:25]}  Kf8 {[%clk 0:00:06]} 38. Rxf6 {[%clk 0:00:26]}  Re7 {[%clk 0:00:07]} 39. Kh2 {[%clk 0:00:21]}  Re2 {[%clk 0:00:07]} 40. Rfxf7+ {[%clk 0:00:21]}  Ke8 {[%clk 0:00:07]} 41. Bg6 {[%clk 0:00:19]}  b4 {[%clk 0:00:07]} 42. Ra7+ {[%clk 0:00:18]} 1-0


[Site "https://www.chess.com"]

[Event "Titled Tuesday Blitz February 22 Late 2022"]
[White "Kosakowski, Jakub"]
[Black "Svane, Rasmus"]
[WhiteFideId "1185080"]
[BlackFideId "4657101"]
[WhiteElo "2476"]
[BlackElo "2645"]
[Result "0-1"]
[Round "09"]
[TimeControl "180+1"]
[Date "2022.02.22"]
[WhiteClock "0:00:18"]
[BlackClock "0:00:27"]

1. d4 {[%clk 0:03:00]}  Nf6 {[%clk 0:02:58]} 2. c4 {[%clk 0:03:00]}  e6 {[%clk 0:02:58]} 3. Nf3 {[%clk 0:02:59]}  d5 {[%clk 0:02:58]} 4. g3 {[%clk 0:02:59]}  h6 {[%clk 0:02:52]} 5. Bg2 {[%clk 0:02:58]}  Bd6 {[%clk 0:02:53]} 6. O-O {[%clk 0:02:58]}  O-O {[%clk 0:02:53]} 7. Qc2 {[%clk 0:02:58]}  b6 {[%clk 0:02:40]} 8. Bf4 {[%clk 0:02:09]}  Bb7 {[%clk 0:02:35]} 9. Nbd2 {[%clk 0:02:08]}  Bxf4 {[%clk 0:02:28]} 10. gxf4 {[%clk 0:02:08]}  c5 {[%clk 0:02:29]} 11. dxc5 {[%clk 0:02:04]}  bxc5 {[%clk 0:02:30]} 12. cxd5 {[%clk 0:02:04]}  Nxd5 {[%clk 0:02:28]} 13. e3 {[%clk 0:02:03]}  Nd7 {[%clk 0:02:26]} 14. a3 {[%clk 0:02:01]}  Rb8 {[%clk 0:02:17]} 15. Rfd1 {[%clk 0:01:59]}  Ba6 {[%clk 0:02:14]} 16. Ne4 {[%clk 0:01:47]}  Qb6 {[%clk 0:02:10]} 17. Nc3 {[%clk 0:01:30]}  N5f6 {[%clk 0:01:46]} 18. b4 {[%clk 0:01:24]}  Rfc8 {[%clk 0:01:37]} 19. Na4 {[%clk 0:00:55]}  Qb5 {[%clk 0:01:28]} 20. Bf1 {[%clk 0:00:50]}  Qc6 {[%clk 0:01:27]} 21. Bxa6 {[%clk 0:00:50]}  Qxa6 {[%clk 0:01:23]} 22. Nxc5 {[%clk 0:00:50]}  Nxc5 {[%clk 0:01:15]} 23. bxc5 {[%clk 0:00:51]}  Rb5 {[%clk 0:00:56]} 24. Rac1 {[%clk 0:00:47]}  Rbxc5 {[%clk 0:00:52]} 25. Rd8+ {[%clk 0:00:18]}  Rxd8 {[%clk 0:00:44]} 26. Qxc5 {[%clk 0:00:18]}  Qe2 {[%clk 0:00:44]} 27. Ne5 {[%clk 0:00:18]}  Ne4 {[%clk 0:00:35]} 28. Qc2 {[%clk 0:00:18]}  Rd2 {[%clk 0:00:33]} 29. Qc8+ {[%clk 0:00:18]}  Kh7 {[%clk 0:00:33]} 30. Rf1 {[%clk 0:00:18]}  Nxf2 {[%clk 0:00:27]} 0-1


[Site "https://www.chess.com"]